bitfinex-derivatives/quotes_ETHF0:USTF0_20251117
["timestamp","ask_amount","ask_price","bid_price","bid_amount"]
[1763392107178,0.51535,3146.3,3146.1,0.00476492]
[1763392107376,3.2078,3146.4,3145.3,0.00238343]
[1763392107574,3.72325,3145.7,3145.3,0.51788343]
[1763392107778,0.51548,3145.5,3145.3,0.00238343]
[1763392107988,0.5156,3144.8,3144.5,3.72344]
[1763392108282,0.52032492,3145.0,3144.5,3.2078]
[1763392108476,0.51558,3144.9,3144.5,3.72343]
[1763392108678,0.00476492,3145.0,3144.8,0.00895]
[1763392109079,0.52381966,3145.0,3144.8,0.01132237]
[1763392109685,0.00824966,3145.0,3144.8,0.01132237]
[1763392109981,3.73160966,3145.0,3144.8,0.01132237]
[1763392110174,3.73160966,3145.0,3143.6,3.2078]
[1763392110175,0.51576,3143.8,3143.6,3.2078]
[1763392110378,3.2078,3143.9,3143.2,0.51585]
[1763392110584,3.2078,3143.7,3142.7,3.29844158]
[1763392110883,3.2078,3143.6,3142.7,3.29844158]
[1763392111282,3.2078,3144.1,3142.9,0.00476492]
[1763392111476,0.51573,3144.0,3143.8,0.8753]
[1763392111879,0.51573,3144.0,3142.7,0.09064158]
[1763392111880,5.273,3143.8,3141.6,0.8753]
[1763392112182,3.2078,3141.9,3140.0,3.2078]
[1763392112380,0.51636,3140.2,3140.0,3.2078]
[1763392112580,0.51636,3140.2,3138.0,0.8753]
[1763392112581,0.51644,3139.7,3138.7,0.54845083]
[1763392112780,1.13218061,3141.5,3138.7,0.03186083]
[1763392112985,1.13218061,3141.5,3138.7,0.55209843]
[1763392112986,0.51649,3139.4,3138.7,0.55209843]
[1763392113187,1.68512528,3141.5,3138.7,3.24331843]
[1763392113188,0.51651,3139.2,3138.7,3.24331843]
[1763392113483,3.2078,3138.8,3138.7,0.03551843]
[1763392113676,3.2078,3138.8,3137.4,3.2078]
[1763392113879,3.2078,3137.5,3135.8,3.2078]
[1763392114083,3.2078,3137.2,3136.3,3.2078]
[1763392114480,3.2078,3137.9,3137.3,0.51682]
[1763392114681,3.2078,3137.9,3137.3,0.00284434]
[1763392114889,3.0785962,3137.9,3137.7,0.51676]
[1763392115093,2.38528386,3137.9,3137.5,0.51679]
[1763392115387,2.38528386,3137.9,3137.3,0.00284434]
[1763392115586,3.2078,3137.4,3136.9,0.8753]
[1763392115888,3.2078,3138.0,3137.4,0.51681]
[1763392116086,3.2078,3138.0,3137.1,3.72466]
[1763392116279,3.2078,3138.0,3137.0,0.51686]
[1763392116485,3.2078,3137.1,3137.0,0.00296633]
[1763392116700,3.2078,3137.1,3136.2,0.09064158]
[1763392116995,3.2078,3136.3,3136.2,0.60765158]
[1763392117292,0.0047805,3136.6,3136.2,0.09064158]
[1763392117490,3.2078,3137.2,3136.6,0.51694]
[1763392117681,3.2109265,3137.2,3136.9,1.39218]
[1763392117883,3.2109265,3137.2,3136.2,0.09064158]
[1763392117884,2.73055978,3137.1,3136.2,0.09064158]
[1763392118080,0.51709,3135.8,3134.4,4.0831]
[1763392118286,3.2078,3135.4,3134.4,4.0831]
[1763392118486,0.0031265,3137.2,3134.4,4.0831]
[1763392118487,3.2078,3135.8,3134.8,3.2078]
[1763392118686,3.2078,3135.0,3134.4,0.8753]
[1763392118889,3.2078,3134.5,3134.4,0.87783303]
[1763392119081,3.2108254,3135.0,3134.4,0.87783303]
[1763392119287,0.0047805,3134.8,3134.4,0.87783303]
[1763392119488,3.2078,3134.6,3134.4,0.87783303]
[1763392119693,0.0047805,3134.8,3134.4,1.39512303]
[1763392119885,3.2078,3134.6,3134.4,0.87783303]
[1763392120293,3.24784978,3134.5,3133.7,0.03191167]
[1763392120496,3.2078,3133.8,3133.7,0.03191167]
[1763392120684,3.2078,3134.6,3134.0,0.51736]
[1763392120886,3.2078,3134.6,3134.3,0.51731]
[1763392121084,3.2078,3134.6,3133.7,0.03191167]
[1763392121296,3.2078,3133.8,3133.7,0.03551055]
[1763392121696,3.2078,3134.2,3133.7,6.03551055]
[1763392121898,0.0047805,3134.8,3133.8,3.2078]
[1763392122201,0.0030254,3135.0,3134.6,0.8753]
[1763392122392,0.0030254,3135.0,3134.6,1.39257]
[1763392122587,0.0030254,3135.0,3134.6,0.8753]
[1763392122791,3.2078,3134.7,3134.6,0.8753]
[1763392123089,3.2078,3134.7,3133.7,3.24331055]
[1763392123090,3.2078,3134.7,3134.3,0.0047805]
[1763392123300,0.51737,3134.0,3133.7,0.03551055]
[1763392123598,0.0078059,3135.0,3133.7,0.55293055]
[1763392123599,3.2078,3133.8,3133.7,0.55293055]
[1763392123998,3.7252,3133.8,3133.7,0.03551055]
[1763392124590,0.51748,3133.4,3133.2,0.8753]
[1763392124791,3.2078,3133.8,3132.4,4.643e-05]
[1763392124792,0.51761,3132.6,3132.4,4.643e-05]
[1763392125000,0.51783,3131.2,3131.1,3.47815088]
[1763392125198,0.51783,3131.2,3131.1,0.27035088]
[1763392125500,0.51783,3131.2,3129.8,3.2078]
[1763392125501,2.73055978,3131.2,3130.5,0.51794]
[1763392125694,3.2078,3130.6,3130.5,0.52154798]
[1763392125893,3.2078,3131.0,3130.5,0.00359798]
[1763392126099,3.2078,3130.6,3130.5,0.00359798]
[1763392126708,3.2078,3131.0,3130.5,0.00359798]
[1763392126902,6.37360862,3134.5,3131.8,0.8753]
[1763392127204,11.482,3135.1,3131.8,0.8753]
[1763392127205,3.2078,3132.8,3131.8,0.8753]
[1763392127500,26.55997489,3135.1,3131.8,0.8753]
[1763392127501,3.2078,3131.9,3131.8,0.8753]
[1763392127704,3.2078,3132.3,3131.8,0.8753]
[1763392127999,3.2078,3131.9,3131.8,0.8753]
[1763392128304,0.00273501,3132.3,3132.1,0.51768]
[1763392128596,0.87450539,3137.8,3133.2,0.8753]
[1763392128597,3.2078,3133.4,3133.2,0.8753]
[1763392128902,3.2078,3133.4,3132.0,3.2078]
[1763392129103,3.2078,3133.5,3132.2,3.2078]
[1763392129399,3.2078,3133.2,3132.2,3.2078]
[1763392129606,0.51753,3133.1,3132.5,0.00478851]
[1763392129797,3.2078,3132.6,3132.5,0.00478851]
[1763392130305,3.72534,3133.0,3132.5,0.00478851]
[1763392130501,0.00478851,3133.2,3133.0,0.51753]
[1763392130807,3.2078,3133.4,3132.6,3.2078]
[1763392130995,0.00310967,3133.5,3133.3,0.51749]
[1763392131303,3.2078,3134.1,3133.9,0.51738]
[1763392131607,3.2078,3134.7,3134.0,3.2078]
[1763392131898,3.2078,3134.3,3134.0,0.00478851]
[1763392132100,0.51734,3134.2,3134.0,0.00478851]
[1763392132402,0.00321839,3134.3,3134.1,0.51735]
[1763392132597,0.51735,3134.2,3134.0,0.00478851]
[1763392132802,3.21101839,3134.3,3133.2,0.8753]
[1763392132999,3.2078,3133.8,3133.2,0.8753]
[1763392133205,0.51743,3133.7,3133.2,0.8753]
[1763392133403,3.2078,3133.8,3133.6,0.51743]
[1763392133607,0.00321839,3134.3,3134.2,0.51734]
[1763392133904,0.00321839,3134.3,3134.2,3.72514]
[1763392134099,0.00478851,3134.7,3134.6,1.46417]
[1763392134294,3.2078,3135.8,3134.6,4.1547]
[1763392134500,3.2078,3135.4,3134.6,4.1547]
[1763392134998,3.2078,3135.8,3135.1,3.2078]
[1763392135203,0.52095462,3135.4,3135.1,3.2078]
[1763392135405,0.00381462,3135.4,3134.9,0.00478851]
[1763392135593,3.21161462,3135.4,3134.9,0.00478851]
[1763392135907,0.5172,3135.1,3134.9,0.00478851]
[1763392136108,0.51717,3135.3,3134.9,0.00478851]
[1763392136310,0.5172,3135.1,3134.9,0.00478851]
[1763392136600,3.2078,3135.0,3134.9,0.00478851]
[1763392137802,3.725,3135.0,3134.9,0.00478851]
[1763392138005,0.51737,3134.0,3133.9,3.2078]
[1763392138298,0.51737,3134.0,3131.9,11.491]
[1763392138299,3.2078,3134.3,3132.5,3.2078]
[1763392138503,0.51748,3133.4,3132.6,0.5176]
[1763392138694,0.51745,3133.5,3132.5,3.2078]
[1763392138896,0.51745,3133.5,3132.7,0.00478851]
[1763392138897,0.00478851,3133.3,3132.7,0.00478851]
[1763392139100,0.00478851,3133.3,3132.7,0.00862011]
[1763392139298,0.00478851,3133.3,3133.1,0.51751]
[1763392139607,0.51753,3133.0,3132.9,3.2078]
[1763392139903,0.51753,3133.0,3132.7,0.00862011]
[1763392139904,0.51757,3132.8,3132.7,0.00862011]
[1763392140203,3.72537,3132.8,3132.7,0.00862011]
[1763392140409,11.93835978,3132.8,3130.2,3.2078]
[1763392140605,3.2078,3130.8,3130.6,0.51792]
[1763392141106,0.51806,3129.8,3129.1,3.2078]
[1763392141307,3.2078,3129.7,3129.1,0.00355226]
[1763392141501,0.00717432,3129.8,3129.4,3.2078]
[1763392141700,3.2078,3131.5,3129.4,3.2078]
[1763392141898,3.2078,3132.3,3131.5,0.51778]
[1763392142101,3.2078,3132.7,3130.8,3.2078]
[1763392142405,3.2078,3131.8,3130.3,3.2078]
[1763392142705,3.21258851,3131.4,3130.7,3.21258851]
[1763392142896,0.00478851,3131.4,3130.7,3.21258851]
[1763392143103,0.00251747,3131.8,3131.7,0.51775]
[1763392143406,3.2078,3133.6,3131.8,0.9469]
[1763392143604,0.5176,3132.6,3131.3,3.2078]
[1763392143804,3.2078,3132.8,3130.4,0.9469]
[1763392143805,5.93835978,3132.8,3132.2,3.2078]
[1763392144112,5.93835978,3132.8,3130.8,3.2078]
[1763392144113,3.2078,3132.3,3130.8,3.2078]
[1763392144408,3.72556,3131.7,3130.8,3.2078]
[1763392144704,3.2078,3131.7,3130.8,3.2078]
[1763392144907,0.00404766,3132.3,3132.1,0.51768]
[1763392145111,0.00478851,3132.8,3132.0,3.2078]
[1763392145297,3.2078,3133.1,3132.8,0.51756]
[1763392145500,3.2078,3133.1,3131.9,0.00478851]
[1763392145501,0.51756,3132.9,3132.1,3.72547]
[1763392145812,0.51756,3132.9,3131.9,0.00478851]
[1763392145813,3.2078,3132.6,3131.9,0.00478851]
[1763392146104,0.0035746,3132.6,3132.5,3.2078]
[1763392146311,0.00478851,3132.9,3132.5,3.2078]
[1763392146511,3.2078,3132.6,3131.9,0.00796876]
[1763392146809,3.2078,3132.2,3131.9,0.00796876]
[1763392147197,3.2112739,3132.2,3131.9,0.00796876]
[1763392147403,0.51769,3132.1,3131.9,0.00796876]
[1763392147811,0.51768,3132.1,3131.9,0.00796876]
[1763392148006,3.2112739,3132.2,3131.9,0.00796876]
[1763392148210,0.0034739,3132.2,3132.0,0.51769]
[1763392148514,0.0034739,3132.2,3131.9,0.00796876]
[1763392148702,8.6044129,3132.1,3130.8,3.2078]
[1763392148906,3.2078,3131.2,3130.4,3.2078]
[1763392149212,0.51821,3129.0,3128.7,0.03196267]
[1763392149408,0.51809,3129.7,3128.7,3.23976267]
[1763392149607,0.00402327,3129.7,3128.7,3.24318436]
[1763392149913,0.00478851,3129.5,3129.1,0.51818]
[1763392150116,3.2078,3129.3,3129.0,0.9469]
[1763392150300,3.2078,3129.3,3128.9,0.00478851]
[1763392150504,3.19576509,3129.3,3129.2,0.51816]
[1763392150713,0.00478851,3129.5,3129.0,0.9469]
[1763392151014,3.2078,3129.3,3128.9,0.00478851]
[1763392151211,0.51819,3129.1,3128.9,0.00478851]
[1763392151410,3.2078,3129.3,3128.0,1.1121659]
[1763392151598,0.00478851,3129.5,3127.8,2.0590659]
[1763392151599,3.2078,3128.3,3127.8,2.0590659]
[1763392151799,2.6044129,3129.2,3127.9,1.1121659]
[1763392152013,3.2078,3128.0,3127.6,0.9469]
[1763392152206,3.2078,3128.4,3127.7,0.5184]
[1763392152515,0.51838,3127.9,3127.7,0.00864659]
[1763392152811,3.2078,3128.0,3126.2,3.2078]
[1763392153012,3.2078,3126.6,3125.8,3.2078]
[1763392153313,3.604,3128.9,3126.5,3.2078]
[1763392153314,3.2078,3127.4,3126.5,3.2078]
[1763392153504,3.2078,3127.4,3127.2,0.51848]
[1763392153709,3.2078,3127.8,3126.9,3.2078]
[1763392154006,0.00479661,3127.7,3126.9,0.00326685]
[1763392154203,0.00479661,3127.7,3125.2,0.9469]
[1763392154204,3.2078,3127.0,3125.4,3.2078]
[1763392154406,3.2078,3126.6,3125.4,3.2078]
[1763392154709,3.2078,3126.6,3125.6,0.51876]
[1763392154911,3.2078,3126.6,3126.3,0.51864]
[1763392155104,3.2078,3127.1,3126.3,3.2078]
[1763392155411,3.2078,3126.7,3126.5,0.5186]
[1763392155706,3.2078,3127.1,3126.3,0.00343082]
[1763392155907,0.00479661,3127.7,3127.6,0.51843]
[1763392156210,3.2078,3128.6,3127.6,0.9469]
[1763392156410,1.13218061,3129.6,3127.6,0.9469]
[1763392156411,3.2078,3128.2,3127.6,0.9469]
[1763392157113,3.2078,3127.8,3127.6,0.95169661]
[1763392157304,3.2078,3127.8,3127.6,0.00479661]
[1763392157706,3.21614473,3128.2,3128.0,0.51835]
[1763392158115,3.73448473,3128.2,3127.6,0.00479661]
[1763392158317,3.2078,3127.8,3127.6,0.00479661]
[1763392158613,3.21614473,3128.2,3127.8,1.0331]
[1763392158806,3.2078,3129.6,3128.1,3.2078]
[1763392159015,3.2078,3130.6,3129.5,3.2078]
[1763392159314,3.2078,3131.1,3130.4,3.2078]
[1763392159613,1.13218061,3133.2,3129.1,1.0331]
[1763392159614,3.2078,3131.8,3130.5,3.2078]
[1763392159817,3.2078,3131.2,3130.9,0.51787]
[1763392160009,0.00479661,3131.5,3130.8,0.00479661]
[1763392160206,3.2078,3130.9,3130.8,0.00479661]
[1763392160411,0.51786,3131.1,3130.8,0.00479661]
[1763392160616,3.2078,3130.9,3130.8,0.00479661]
[1763392160813,3.2078,3130.9,3130.0,0.51802]
[1763392161008,3.2078,3130.9,3129.8,3.2078]
[1763392161209,3.2078,3130.7,3129.9,3.2078]
[1763392161405,3.2078,3130.7,3129.1,1.0331]
[1763392161406,0.51797,3130.4,3129.6,0.51809]
[1763392161618,3.2078,3130.7,3129.4,3.2078]
[1763392161812,3.2078,3130.3,3129.7,0.00479661]
[1763392162116,0.51806,3129.9,3129.7,0.00479661]
[1763392162415,0.51812,3129.5,3128.6,3.2078]
[1763392162605,3.2078,3129.4,3128.6,3.2078]
[1763392162806,0.51817,3129.2,3128.6,3.2078]
[1763392163010,3.2078,3129.4,3129.2,0.51816]
[1763392163209,0.51819,3129.1,3128.1,3.2078]
[1763392163410,0.51819,3129.1,3128.1,3.21080657]
[1763392163625,3.2078,3129.0,3128.1,3.21080657]
[1763392164014,3.2078,3129.0,3128.7,0.51824]
[1763392164236,3.2078,3129.0,3128.8,0.51822]
[1763392164515,3.2078,3129.0,3128.1,0.00300657]
[1763392164516,0.00250974,3129.4,3128.1,3.21080657]
[1763392164714,0.51817,3129.2,3128.7,3.2078]
[1763392164918,3.2078,3129.2,3128.1,3.21080657]
[1763392165913,3.72612,3128.3,3128.1,0.00300657]
[1763392166523,2.6044129,3128.2,3127.3,3.2078]
[1763392166716,2.6044129,3128.2,3127.5,0.51844]
[1763392166916,2.6044129,3128.2,3126.2,0.9469]
[1763392166917,3.2078,3128.7,3128.5,0.51827]
[1763392167118,2.6044129,3128.1,3126.2,0.9469]
[1763392167319,3.2078,3127.3,3126.2,0.9469]
[1763392167518,0.5186,3126.6,3126.2,0.95097691]
[1763392167719,3.2078,3126.3,3126.2,0.00407691]
[1763392167920,3.2078,3126.3,3125.1,0.51884]
[1763392168219,3.2078,3125.9,3125.1,3.2078]
[1763392168419,3.2078,3125.9,3124.0,0.29158858]
[1763392168420,3.2078,3125.5,3124.3,3.2078]
[1763392168727,3.2078,3125.5,3124.0,0.28649278]
[1763392168728,3.2078,3126.4,3126.3,0.51864]
[1763392168919,3.2078,3126.4,3126.3,0.52243858]
[1763392169419,0.00413492,3126.6,3126.5,1.63251]
[1763392169619,3.2078,3127.0,3126.6,0.51859]
[1763392169818,0.51862,3126.5,3126.3,0.00379858]
[1763392170011,3.2078,3126.4,3126.3,0.00379858]
[1763392170616,3.21083095,3126.4,3126.3,0.00379858]
[1763392171329,3.21083095,3126.4,3125.2,0.9469]
[1763392171619,0.51877,3125.6,3125.2,0.9469]
[1763392171822,3.2078,3125.8,3125.2,1.46571]
[1763392172019,3.72653,3125.8,3125.2,0.9469]
[1763392172228,3.2078,3125.4,3125.2,0.9469]
[1763392172414,3.2078,3125.4,3125.2,1.46971748]
[1763392172615,3.2078,3125.8,3125.7,0.51873]
[1763392172822,0.00303095,3126.4,3125.5,3.2078]
[1763392173020,3.2078,3125.9,3125.2,4.14930748]
[1763392173222,0.00479661,3127.1,3125.2,4.14930748]
[1763392173223,1.1186,3126.5,3125.8,3.2078]
[1763392173526,1.1186,3126.5,3125.7,3.2078]
[1763392173725,0.51872,3125.9,3125.7,3.2078]
[1763392173929,3.2078,3125.9,3125.2,0.00400748]
[1763392174123,0.5188,3125.4,3125.2,0.00400748]
[1763392174321,0.00368738,3125.9,3125.2,3.21180748]
[1763392174626,1.13697722,3127.1,3125.2,3.21180748]
[1763392174627,3.2078,3126.9,3126.6,0.51859]
[1763392174829,3.2078,3126.9,3125.2,0.00400748]
[1763392175025,0.00479661,3127.1,3125.4,3.2078]
[1763392175026,5.8122129,3126.3,3125.4,3.2078]
[1763392175222,3.2078,3125.9,3125.3,0.5188]
[1763392175418,0.5188,3125.4,3125.2,0.00400748]
[1763392175623,0.5215872,3125.4,3125.2,0.00400748]
[1763392175818,0.0027872,3125.4,3125.2,0.00400748]
[1763392176325,0.0027872,3125.4,3125.2,0.52282748]
[1763392177027,0.51881,3125.3,3125.2,0.00400748]
[1763392177733,0.0027872,3125.4,3124.5,3.2078]
[1763392178033,0.00479661,3125.3,3124.5,3.2078]
[1763392178226,0.51892,3124.7,3124.5,3.72674]
[1763392178420,3.2078,3125.0,3124.6,0.51892]
[1763392178625,3.2078,3125.0,3124.8,0.51889]
[1763392178827,2.6044129,3124.9,3122.3,3.2078]
[1763392179030,3.2078,3123.1,3121.6,3.2078]
[1763392179227,3.2078,3122.3,3122.1,0.51934]
[1763392179530,3.21259661,3122.7,3122.6,1.1139]
[1763392179727,3.2078,3123.7,3122.6,4.32396948]
[1763392179936,3.2078,3123.7,3123.0,6.46e-06]
[1763392180227,3.2078,3123.7,3121.3,1.1139]
[1763392180228,3.2078,3123.1,3121.3,1.1139]
[1763392180422,3.2078,3121.4,3121.3,1.1139]
[1763392180819,0.51951,3121.1,3121.0,0.00480492]
[1763392181019,0.00254861,3121.1,3119.2,3.2078]
[1763392181224,3.2078,3120.4,3120.2,0.51965]
[1763392181424,0.00254861,3121.1,3120.1,3.2078]
[1763392181628,0.00254861,3121.1,3120.8,3.2078]
[1763392181830,0.00254861,3121.1,3120.0,1.1139]
[1763392182127,3.72744,3120.3,3120.0,0.00382765]
[1763392182322,3.2078,3120.3,3120.0,0.00382765]
[1763392182522,3.21034861,3121.1,3120.1,3.2078]
[1763392182720,3.21034861,3121.1,3120.3,3.2078]
[1763392182919,3.21034861,3121.1,3120.2,0.51966]
[1763392183126,3.21034861,3121.1,3120.5,3.2078]
[1763392183625,0.00254861,3121.1,3120.5,3.2078]
[1763392184329,0.51964,3120.4,3120.0,1.11772765]
[1763392184529,0.51967,3120.2,3120.0,0.00382765]
[1763392184932,0.51967,3120.2,3118.7,1.14596516]
[1763392184933,8.6044129,3120.1,3118.7,0.03206516]
[1763392185230,3.2078,3119.5,3119.3,0.51979]
[1763392185435,3.2078,3120.7,3119.4,3.2078]
[1763392185631,3.2078,3120.7,3120.1,0.51967]
[1763392185833,3.2078,3120.7,3120.1,0.0030538]
[1763392186032,3.2078,3120.7,3120.3,0.51963]
[1763392186222,2.6044129,3120.6,3120.1,0.0030538]
[1763392186423,3.21260492,3120.7,3120.4,0.51962]
[1763392186626,3.21260492,3120.7,3120.6,3.2078]
[1763392186627,0.00480492,3120.7,3120.6,3.2078]
[1763392186831,0.00254861,3121.1,3121.0,0.51952]
[1763392187031,0.00254861,3121.1,3121.0,3.72732]
[1763392187224,3.2078,3121.5,3121.4,0.51946]
[1763392187423,3.2078,3122.0,3121.8,0.51939]
[1763392187623,3.2078,3122.0,3121.4,3.72725]
[1763392187831,3.2078,3122.0,3121.8,0.51938]
[1763392188132,0.00892483,3122.0,3121.8,0.51938]
[1763392188326,0.00892483,3122.0,3121.8,3.72718]
[1763392188531,3.2078,3123.6,3123.1,0.51917]
[1763392188731,3.2078,3123.6,3122.9,3.2078]
[1763392188937,3.2078,3123.6,3121.3,1.1139]
[1763392188938,0.5192,3123.0,3122.5,3.2078]
[1763392189132,3.72703,3122.8,3121.6,3.2078]
[1763392189335,3.2078,3123.6,3123.4,0.51911]
[1763392189632,3.2078,3124.4,3123.6,0.51908]
[1763392189829,3.21129404,3124.4,3124.2,0.51898]
[1763392190030,3.21260492,3124.3,3123.8,0.51905]
[1763392190235,3.2078,3123.9,3123.4,1.11795455]
[1763392190430,0.52379492,3124.3,3123.4,1.11795455]
[1763392190431,0.00480492,3124.3,3124.0,0.51902]
[1763392190629,3.2078,3125.1,3123.9,3.2078]
[1763392190931,3.2078,3125.1,3124.9,0.51886]
[1763392191136,3.2078,3126.8,3124.9,3.2078]
[1763392191331,3.2078,3126.6,3125.5,0.51876]
[1763392191524,3.2078,3126.6,3125.8,3.2078]
[1763392191730,0.00479685,3126.5,3126.4,3.72641]
[1763392192130,0.5184,3127.8,3126.5,3.1984]
[1763392192331,3.2078,3127.5,3126.7,3.2078]
[1763392192536,0.51846,3127.4,3126.7,3.2078]
[1763392192748,3.2078,3127.1,3125.9,0.00479685]
[1763392193038,0.00479685,3126.8,3126.3,3.2078]
[1763392193238,0.00479685,3126.8,3126.7,3.2078]
[1763392193637,1.79174,3128.6,3126.8,6.0]
[1763392193832,1.79174,3128.6,3127.6,3.2078]
[1763392194345,1.79174,3128.6,3128.0,3.2078]
[1763392194644,1.79857759,3128.6,3128.0,3.73468504]
[1763392195239,1.79857759,3128.6,3128.0,3.21633504]
[1763392195543,1.79857759,3128.6,3128.1,0.51834]
[1763392195736,1.79857759,3128.6,3128.0,3.21633504]
[1763392196138,1.79857759,3128.6,3128.5,3.2078]
[1763392196336,3.2078,3129.8,3128.5,3.2078]
[1763392196544,0.51811,3129.6,3129.0,3.2078]
[1763392196841,0.5182,3129.0,3128.9,40.8]
[1763392197044,3.2078,3129.4,3128.6,3.2078]
[1763392197045,0.51816,3129.3,3128.6,3.2078]
[1763392197242,3.2078,3129.4,3128.8,0.51821]
[1763392197447,3.21144521,3129.4,3129.0,3.2078]
[1763392197641,3.21144521,3129.4,3129.0,3.72599]
[1763392197841,3.21144521,3129.4,3129.2,0.51815]
[1763392198148,0.00364521,3129.4,3129.0,3.2078]
[1763392198341,0.51823,3128.9,3128.1,40.8]
[1763392198638,0.51827,3128.6,3128.1,40.8]
[1763392199257,3.2078,3128.7,3128.1,40.8]
[1763392199439,0.51826,3128.6,3128.1,40.8]
[1763392199631,0.51828,3128.5,3128.0,0.00853504]
[1763392199837,3.2078,3128.7,3128.0,0.00853504]
[1763392200135,3.2078,3129.0,3128.3,3.2078]
[1763392200334,0.51832,3128.3,3128.0,0.00853504]
[1763392200633,0.51858,3126.7,3126.5,3.2078]
[1763392200838,3.72641,3126.6,3126.0,3.2078]
[1763392201039,3.2078,3127.2,3126.0,3.2078]
[1763392201241,3.2078,3127.2,3126.1,3.2078]
[1763392201444,3.2078,3126.8,3125.7,3.2078]
[1763392201651,0.51872,3125.9,3125.7,0.00373453]
[1763392201839,3.72644,3126.4,3125.7,0.52247453]
[1763392202037,3.2078,3126.4,3125.7,0.00373453]
[1763392202644,3.2078,3126.2,3125.7,0.00373453]
[1763392202848,3.2078,3125.8,3125.7,0.00373453]
[1763392203046,3.2078,3125.8,3124.3,3.2078]
[1763392203241,3.2078,3125.8,3125.3,3.2078]
[1763392203444,3.2105409,3126.8,3125.7,3.2078]
[1763392203652,3.2078,3127.3,3126.7,3.2078]
[1763392203950,0.00479685,3127.3,3126.9,3.2078]
[1763392204149,0.00479685,3127.3,3127.1,0.5185]
[1763392204349,3.2078,3128.4,3127.0,6.0]
[1763392204546,3.2078,3128.9,3127.9,3.2078]
[1763392204848,3.21013845,3128.9,3128.5,0.51827]
[1763392205242,3.21013845,3128.9,3127.9,0.00355822]
[1763392205243,0.51826,3128.7,3127.9,0.00355822]
[1763392205448,3.2078,3128.2,3128.0,0.52314685]
[1763392205653,3.21259685,3128.6,3128.0,0.00479685]
[1763392205961,3.21259685,3128.6,3128.1,40.8]
[1763392206252,3.2078,3128.2,3128.0,0.00479685]
[1763392206761,3.21259685,3128.6,3128.4,0.51828]
[1763392207254,0.00479685,3128.6,3128.4,0.51828]
[1763392207455,3.2078,3128.5,3128.4,0.51828]
[1763392207753,0.00479685,3128.6,3128.1,3.2078]
[1763392207954,0.00479685,3128.6,3128.4,0.51828]
[1763392208257,3.2078,3130.0,3129.9,0.51805]
[1763392208554,3.2078,3130.0,3129.8,0.51805]
[1763392208855,3.2078,3130.0,3128.9,3.2078]
[1763392209052,3.2078,3130.0,3129.3,3.2078]
[1763392209255,3.2115085,3130.0,3129.2,3.2078]
[1763392209945,3.2078,3129.6,3129.2,0.51816]
[1763392210144,3.2078,3129.6,3129.1,0.00479685]
[1763392210353,0.51824,3128.8,3127.9,0.00355822]
[1763392210548,3.2078,3128.7,3127.9,0.00355822]
[1763392210859,0.51833,3128.2,3127.9,0.00355822]
[1763392211059,3.2078,3129.1,3128.1,3.2078]
[1763392211356,3.2078,3129.8,3128.5,3.2078]
[1763392211548,0.00479685,3129.5,3129.2,0.51816]
[1763392211757,3.2078,3129.3,3128.5,3.2078]
[1763392211951,3.2078,3128.8,3128.3,0.00479685]
[1763392212147,0.51845,3127.5,3127.3,3.2078]
[1763392212347,0.51855,3126.9,3126.7,3.2078]
[1763392212555,3.2078,3127.1,3126.7,3.2078]
[1763392212756,0.51849,3127.3,3126.7,3.2078]
[1763392212951,2.484,3130.0,3126.7,3.2078]
[1763392213155,0.5185,3127.2,3126.7,3.2108213]
[1763392213455,0.51853,3127.0,3126.7,0.0030213]
[1763392213654,0.51872,3125.9,3125.3,3.2078]
[1763392213858,3.2078,3126.8,3125.7,3.2078]
[1763392214059,3.2078,3126.4,3125.3,3.2078]
[1763392214266,0.51865,3126.3,3125.8,0.51872]
[1763392214444,3.2078,3126.4,3125.9,0.51871]
[1763392214648,0.00479685,3126.5,3125.9,0.00269543]
[1763392214850,3.72649,3126.1,3125.9,0.00269543]
[1763392215051,3.2078,3126.1,3125.9,0.00269543]
[1763392215358,0.51865,3126.3,3125.9,0.00269543]
[1763392215359,3.21259685,3126.5,3125.9,0.00269543]
[1763392215554,3.72648,3126.1,3125.9,0.00269543]
[1763392215861,3.21259685,3126.5,3125.9,0.00269543]
[1763392216356,0.51867,3126.2,3125.9,0.00269543]
[1763392216564,3.72648,3126.1,3125.9,0.00269543]
[1763392216766,3.2078,3126.1,3125.9,0.00269543]
[1763392216950,0.00479685,3126.5,3126.4,0.51863]
[1763392217152,3.2078,3127.1,3127.0,0.51853]
[1763392217656,3.2078,3127.1,3126.3,40.8]
[1763392217858,3.2078,3127.1,3126.3,44.0078]
[1763392218158,0.00479685,3127.0,3126.3,40.8]
[1763392218662,0.51868,3126.1,3125.9,0.00269543]
[1763392218859,3.2078,3126.0,3125.9,0.00269543]
[1763392219854,0.00479685,3127.0,3126.3,0.51864]
[1763392220059,3.2078,3127.5,3127.4,0.51846]
[1763392220452,3.2078,3128.3,3128.1,0.51834]
[1763392221064,3.21145781,3128.3,3128.1,0.00284867]
[1763392221561,3.72977781,3128.3,3128.1,0.00284867]
[1763392221772,9.72977781,3128.3,3128.1,0.00284867]
[1763392222059,3.21145781,3128.3,3128.1,4.867e-05]
[1763392222652,3.21145781,3128.3,3128.1,0.51838867]
[1763392222852,3.72977781,3128.3,3128.1,4.867e-05]
[1763392223157,0.51833,3128.2,3128.1,4.867e-05]
[1763392223356,3.72977781,3128.3,3128.1,4.867e-05]
[1763392223569,3.21145781,3128.3,3128.1,0.51838867]
[1763392223761,3.21145781,3128.3,3128.1,4.867e-05]
[1763392224158,3.72977781,3128.3,3128.1,4.867e-05]
[1763392224666,3.21145781,3128.3,3127.0,3.2078]
[1763392224963,0.00365781,3128.3,3128.2,3.2078]
[1763392225374,0.78131,3128.7,3128.6,0.51826]
[1763392225555,3.2078,3129.5,3129.3,0.51814]
[1763392225864,1.13218061,3130.5,3129.1,3.2078]
[1763392225865,3.2078,3130.5,3129.1,3.2078]
[1763392226066,3.2078,3130.5,3129.5,3.2078]
[1763392226365,3.2078,3129.6,3129.5,0.0024727]